Cogmind - Beta 14 @@@ ROGUE MODE // 2024.10.20 @ 09:26:30 Player: toydarian Result: Destroyed by G-47 Trooper with Particle Gun Performance ------------- Evolutions (2) 1000 Regions Visited (5) 1000 Robots Destroyed (47) 235 Value Destroyed (1169) 1169 Prototype IDs (4) 80 Alien Tech Used (0) 0 Bonus (300) 300 TOTAL SCORE: 3784 Bonus ------- Aligned with FarCom 300 Cogmind --------- Core Integrity 0/550 Matter 225/300 Energy 100/100 System Corruption 0% Temperature Cool (9) Movement Core (750) Ox14 Location -8/Materials Parts ------- > --- POWER (1) -------- (None) > --- PROPULSION (3) --- (None) > --- UTILITY (5) ------ High-capacity Storage Unit Transport Network Coupler > --- WEAPON (2) ------- Makeshift Axe > --- INVENTORY (20) --- Ion Engine Ion Engine Light Ion Engine Light Ion Engine Small Storage Unit Visual Processing Unit Improved Sensor Array Signal Interpreter Improved Signal Interpreter Skeleton Box Peak State ------------ > --- POWER ------------ Ion Engine > --- PROPULSION ------- Light Treads Light Treads > --- UTILITY ---------- High-capacity Storage Unit > --- WEAPON ----------- AWS/Thermal > --- INVENTORY -------- Ion Engine Ion Engine Ion Engine Light Ion Engine Light Treads Light Treads Small Storage Unit Visual Processing Unit Signal Interpreter Transport Network Coupler Core Shielding Light Armor Plating Light Armor Plating EM Pulse Gun Medium Laser Light Assault Rifle Grenade Launcher Makeshift Axe [Rating: 22] Favorites ----------- Power Ion Engine Engine Ion Engine Propulsion Light Treads Treads Light Treads Utility High-capacity Storage Unit Device Sensor Array Storage High-capacity Storage Unit Processor Transport Network Coupler Protection Light Armor Plating Weapon Assault Rifle Energy Gun Medium Laser Ballistic Gun Assault Rifle Launcher Grenade Launcher Special Weapon Mining Laser Slashing Weapon Makeshift Axe Build | -11 -10 -10 -10 -9 -8 ------- Run | Yrd Mat Min Exi Min Mat Slots Evolved 4 | . . . . . 4 Power . | . . . . . . Propulsion 1 | . . . . . 1 Utility 3 | . . . . . 3 Weapon . | . . . . . . Parts Attached 42 | 7 10 . 7 1 17 Power 3 | 1 1 . . . 1 Engine 3 | 1 1 . . . 1 Core . | . . . . . . Reactor . | . . . . . . Propulsion 4 | 2 . . . . 2 Treads 4 | 2 . . . . 2 Leg . | . . . . . . Wheel . | . . . . . . Hover . | . . . . . . Flight . | . . . . . . Utility 11 | 1 3 . 2 1 4 Device 2 | . 1 . 1 . . Storage 2 | 1 1 . . . . Processor 1 | . . . . . 1 Hackware . | . . . . . . Protection 6 | . 1 . 1 1 3 Artifact . | . . . . . . Weapon 24 | 3 6 . 5 . 10 Energy Gun 7 | 2 1 . 2 . 2 Energy Cannon . | . . . . . . Ballistic Gun 9 | 1 3 . 1 . 4 Ballistic Cannon . | . . . . . . Launcher 4 | . . . 1 . 3 Special Weapon 2 | . 2 . . . . Impact Weapon . | . . . . . . Slashing Weapon 2 | . . . 1 . 1 Piercing Weapon . | . . . . . . Special Melee Weapon . | . . . . . . Unidentified Prototypes 4 | . 1 . 3 . . Parts Lost 19 | . 2 . . . 17 Power 3 | . 1 . . . 2 Propulsion 4 | . . . . . 4 Utility 5 | . 1 . . . 4 Weapon 7 | . . . . . 7 Highest Loss Streak 7 | . 1 . . . 7 To Critical Strikes . | . . . . . . Average Slot Usage (%) 94 | . 99 100 96 100 64 Engine 13 | . 13 14 14 14 8 Treads 25 | . 28 28 28 28 9 Device 3 | . 9 . . . . Storage 13 | . 14 14 14 14 9 Processor 1 | . . . . . 9 Protection 10 | . 3 14 13 14 12 Energy Gun 4 | . 10 . . 14 . Ballistic Gun 17 | . 15 28 21 . 7 Launcher 2 | . . . 3 14 7 Peak Build Rating 22 | 6 9 9 22 11 13 Average Rating 8 | 3 7 8 8 9 9 On Entrance 7 | . 6 8 9 9 11 Naked Turns . | . . . . . . Heaviest Build 57 | 14 52 52 53 57 57 Greatest Support 60 | 40 40 40 40 40 60 Greatest Overweight (x) 14 | . 1 1 1 1 14 Average Overweight (x) . | . . 1 1 1 1 Largest Inventory Capacity 20 | 8 20 20 20 20 20 Average Capacity 19 | 7 17 20 20 20 20 Most Carried 20 | 6 18 20 20 20 19 Average Carried 16 | 3 11 19 19 19 14 Final Capacity 20 | 8 20 20 20 20 20 Final Carried 20 | 2 18 20 19 20 10 Class Distribution -------------------- 100% | Mutant Dominant Class ---------------- Mutant | -10/Materials Mutant | -10/Mines Mutant | -10/Exiles Mutant | -9/Mines Mutant | -8/Materials Resources | -11 -10 -10 -10 -9 -8 ----------- Run | Yrd Mat Min Exi Min Mat Matter Collected 1071 | 257 307 . . 48 459 Remotely . | . . . . . . Salvage Created 1375 | . 629 . . . 746 Parts 80 | . 38 . . . 42 Haulers Intercepted 3 | . 2 . . . 1 Recyclers Shooed 2 | . . . . . 2 Parts Field Recycled . | . . . . . . Retrieved Matter . | . . . . . . Parts Self-Destructed . | . . . . . . Prevented . | . . . . . . Kills | -11 -10 -10 -10 -9 -8 ------- Run | Yrd Mat Min Exi Min Mat Combat Hostiles Destroyed 27 | . 12 . . . 15 Melee 1 | . . . . . 1 Guns 16 | . 12 . . . 4 AOE 10 | . . . . . 10 Classes Destroyed 12 | . 5 . . . 7 Worker 1 | . . . . . 1 Builder 5 | . . . . . 5 Tunneler 1 | . . . . . 1 Hauler 3 | . 2 . . . 1 Recycler 3 | . . . . . 3 Operator 3 | . 2 . . . 1 Watcher 4 | . 3 . . . 1 Swarmer 7 | . 3 . . . 4 Grunt 17 | . 9 . . . 8 Duelist 1 | . . . . . 1 Sentry 1 | . . . . . 1 Hunter 1 | . . . . . 1 Best Kill Streak 7 | . 4 . . . 7 Combat Bots Only 4 | . 3 . . . 4 Max Kills in Single Turn 6 | . 1 . . . 6 Gunslinging . | . . . . . . Exploded 4 | . . . . . 4 Melee 1 | . . . . . 1 Uniques/NPCs Destroyed . | . . . . . . Combat | -11 -10 -10 -10 -9 -8 -------- Run | Yrd Mat Min Exi Min Mat Hostile Shots Fired 208 | . 62 . . . 146 Missed 63 | . 21 . . . 42 Damage Taken 2338 | . 500 . . . 1838 Core 635 | . 84 . . . 551 Absorbed by Shields . | . . . . . . Redirected to Shielding 54 | . . . . . 54 Core Remaining (%) 83 | 100 . . . 66 . Volleys Fired 145 | . 67 . . . 78 Largest 2 | . 2 . . . 2 Hottest 100 | . 100 . . . 90 Shots Fired 237 | . 127 . . . 110 Gun 206 | . 121 . . . 85 Cannon . | . . . . . . Launcher 25 | . . . . . 25 Special 6 | . 6 . . . . Kinetic 138 | . 63 . . . 75 Thermal 72 | . 64 . . . 8 Explosive 25 | . . . . . 25 Electromagnetic 2 | . . . . . 2 Robot Hit Streak 10 | . 10 . . . 10 Robot Miss Streak 4 | . 4 . . . 4 Penetration Max . | . . . . . . Secondary Targets 3 | . 3 . . . . Max Gunslinging Chain 1 | . 1 . . . . Shots Hit Robots 153 | . 82 . . . 71 Core Hits 86 | . 34 . . . 52 Critical Kills . | . . . . . . Critical Parts Destroyed . | . . . . . . Critical Strikes 12 | . 8 . . . 4 Burn 10 | . 8 . . . 2 Sever 2 | . . . . . 2 Melee Attacks 3 | . . . . . 3 Impact . | . . . . . . Slashing 3 | . . . . . 3 Piercing . | . . . . . . Sneak Attacks . | . . . . . . Combat Hostiles . | . . . . . . Follow-up Attacks . | . . . . . . Damage Inflicted 3591 | . 1051 . . . 2540 Guns 1685 | . 1051 . . . 634 Cannons . | . . . . . . Explosions 1818 | . . . . . 1818 Melee 88 | . . . . . 88 Ramming . | . . . . . . Kinetic 1011 | . 477 . . . 534 Thermal 1172 | . 574 . . . 598 Explosive 1295 | . . . . . 1295 Electromagnetic 25 | . . . . . 25 Impact . | . . . . . . Slashing 88 | . . . . . 88 Piercing . | . . . . . . Highest Corruption . | . . . . . . Average Corruption . | . . . . . . Corruption Purged . | . . . . . . Corruption Blocked . | . . . . . . Overload Shots . | . . . . . . Overflow Damage 190 | . . . . . 190 Projectiles . | . . . . . . Explosions 190 | . . . . . 190 Melee . | . . . . . . Knockbacks . | . . . . . . Impact . | . . . . . . Kinetic . | . . . . . . Secondary . | . . . . . . Self-Inflicted Damage 237 | . . . . . 237 Shots 9 | . . . . . 9 Rammed . | . . . . . . Targets Rammed . | . . . . . . Kicked . | . . . . . . Crushed . | . . . . . . Highest Temperature 141 | . 141 . . . 26 Average Temperature 33 | . 38 . . . 9 Received Heat Transfer 1008 | . 207 . . . 801 Siege Activations . | . . . . . . Robots Corrupted . | . . . . . . Combat Hostiles . | . . . . . . Parts Fried . | . . . . . . Impact Corruptions . | . . . . . . Robots Melted . | . . . . . . Combat Hostiles . | . . . . . . Parts Melted 7 | . 5 . . . 2 Heat Transferred 2964 | . 2294 . . . 670 Parts Sabotaged . | . . . . . . Parts Stolen . | . . . . . . Parts Stripped . | . . . . . . Power Chain Reactions . | . . . . . . Alert | -11 -10 -10 -10 -9 -8 ------- Run | Yrd Mat Min Exi Min Mat Peak Influence 364 | . 131 15 . . 364 Initial 15 | . . 15 . . . Average 60 | . 37 5 . . 251 Maximum Alert Level 1 | . . . . . 1 Low Security (%) 86 | 100 100 100 . 100 18 Level 1 13 | . . . . . 81 Level 2 . | . . . . . . Level 3 . | . . . . . . Level 4 . | . . . . . . Level 5 . | . . . . . . High Security . | . . . . . . Max Security . | . . . . . . Squads Dispatched 3 | . 2 . . . 1 Investigation . | . . . . . . Extermination . | . . . . . . Reinforcement 3 | . 2 . . . 1 Assault . | . . . . . . Garrison . | . . . . . . Intercept . | . . . . . . Searches Triggered . | . . . . . . Construction Impeded 1 | . . . . . 1 Haulers Reinforced . | . . . . . . Active Scanning Responses . | . . . . . . Cargo Convoy Interrupts . | . . . . . . Stealth | -11 -10 -10 -10 -9 -8 --------- Run | Yrd Mat Min Exi Min Mat Distress Signals 3 | . 1 . . . 2 Communications Jammed . | . . . . . . Distress Signals . | . . . . . . Times Spotted 44 | . 17 . . . 27 Peak Tracking Total 5 | . 3 . . . 5 Tactical Retreats 1 | . . . . . 1 Traps | -11 -10 -10 -10 -9 -8 ------- Run | Yrd Mat Min Exi Min Mat Traps Triggered 1 | . 1 . . . . Indirectly . | . . . . . . Trap Hack Attempts . | . . . . . . Triggered . | . . . . . . Disarmed 6 | . 6 . . . . Reprogrammed . | . . . . . . Reused . | . . . . . . Traps Extracted . | . . . . . . Installed . | . . . . . . Triggered . | . . . . . . Machines | -11 -10 -10 -10 -9 -8 ---------- Run | Yrd Mat Min Exi Min Mat Machines Disabled 5 | . . . . . 5 Max in Single Turn 1 | . . . . . 1 Machines Repaired . | . . . . . . Machines Dismantled . | . . . . . . Machines Sabotaged . | . . . . . . Overloaded Fab Kills . | . . . . . . Hacking | -11 -10 -10 -10 -9 -8 --------- Run | Yrd Mat Min Exi Min Mat Machines Accessed 7 | . 3 . 4 . . Terminals 3 | . 3 . . . . Fabricators . | . . . . . . Repair Stations . | . . . . . . Recycling Units . | . . . . . . Scanalyzers . | . . . . . . Garrison Access . | . . . . . . Total Hacks 58 | . 9 . 49 . . Successful 52 | . 3 . 49 . . Failed 6 | . 6 . . . . Catastrophic 1 | . 1 . . . . Database Lockouts . | . . . . . . Manual 8 | . 7 . 1 . . Terminals 9 | . 9 . . . . Fabricators . | . . . . . . Repair Stations . | . . . . . . Recycling Units . | . . . . . . Scanalyzers . | . . . . . . Garrison Access . | . . . . . . Terminal Hacks 52 | . 3 . 49 . . Record 49 | . . . 49 . . Locate Traps 2 | . 2 . . . . Disarm Traps 1 | . 1 . . . . Fabricator Hacks . | . . . . . . Repair Station Hacks . | . . . . . . Recycling Unit Hacks . | . . . . . . Scanalyzer . | . . . . . . Garrison Access Hacks . | . . . . . . Unauthorized Hacks . | . . . . . . Terminals . | . . . . . . Fabricators . | . . . . . . Repair Stations . | . . . . . . Recycling Units . | . . . . . . Scanalyzers . | . . . . . . Garrison Access . | . . . . . . Data Cores Recovered . | . . . . . . Used . | . . . . . . Hacking Detections 2 | . 2 . . . . Full Trace Events 1 | . 1 . . . . Feedback Events . | . . . . . . Feedback Blocked . | . . . . . . Robot Schematics Acquired . | . . . . . . Robots Built . | . . . . . . Authchips . | . . . . . . Time . | . . . . . . Total Robot Build Rating . | . . . . . . Part Schematics Acquired . | . . . . . . Parts Built . | . . . . . . Authchips . | . . . . . . Time . | . . . . . . Total Part Build Rating . | . . . . . . Parts Repaired . | . . . . . . Time . | . . . . . . Parts Recycled . | . . . . . . Recycled Matter . | . . . . . . Retrieved Matter . | . . . . . . Retrieved Components . | . . . . . . Parts Scanalyzed . | . . . . . . Part Schematics Acquired . | . . . . . . Parts Damaged . | . . . . . . Bothacking | -11 -10 -10 -10 -9 -8 ------------ Run | Yrd Mat Min Exi Min Mat Used RIF Installer . | . . . . . . Robots Hacked . | . . . . . . Non-combat . | . . . . . . Combat . | . . . . . . Robot Hacks Applied . | . . . . . . Relay Couplers Released . | . . . . . . Fabnet Peak Effective % . | . . . . . . Robots Rewired . | . . . . . . Allies Hacked . | . . . . . . Hacks Repelled . | . . . . . . Allies | -11 -10 -10 -10 -9 -8 -------- Run | Yrd Mat Min Exi Min Mat Total Allies 1 | . . 1 . . . Largest Group 1 | . . 1 . . . Highest-Rated Group 31 | . . 31 . . . Highest-Rated Ally 31 | . . 31 . . . Total Orders . | . . . . . . Ally Attacks . | . . . . . . Total Damage . | . . . . . . Kills . | . . . . . . Allies Corrupted . | . . . . . . Allies Melted . | . . . . . . Intel | -11 -10 -10 -10 -9 -8 ------- Run | Yrd Mat Min Exi Min Mat Robot Analysis Total . | . . . . . . Derelict Logs Recovered 2 | . . 1 . 1 . Drone Launches . | . . . . . . Drone Recoveries . | . . . . . . Exploration | -11 -10 -10 -10 -9 -8 ------------- Run | Yrd Mat Min Exi Min Mat Turns Passed 5565 | 76 1913 1173 1399 313 691 Spaces Moved 2152 | 46 754 487 575 130 160 Core 16 | 10 . . . . 6 Treads 2136 | 36 754 487 575 130 154 Legs . | . . . . . . Wheels . | . . . . . . Hover . | . . . . . . Flight . | . . . . . . Fastest Speed 50 | 50 160 240 240 240 160 Average Speed 235 | 136 219 240 240 240 299 Slowest Speed 750 | 160 240 240 240 240 750 Overloaded Moves . | . . . . . . Propulsion Burnouts . | . . . . . . Robots Hopped . | . . . . . . Cave-ins Triggered . | . . . . . . Exploration Rate (%) 54 | 3 94 84 93 42 11 Regions Visited 5 Branch Regions 3 Pre-discovered Areas 1 | . . . 1 . . Known Exits Taken 1 | . . . 1 . . Unknown Exits Taken 4 | 1 1 1 . 1 . Scrap Searched 1 | . . . . 1 . Spaces Dug 6 | . 6 . . . . Terrain Destroyed 116 | . 6 . . . 110 Melee . | . . . . . . Projectile 6 | . 6 . . . . AOE 110 | . . . . . 110 Terrain Rammed . | . . . . . . Walls Destroyed . | . . . . . . Machines Disabled . | . . . . . . Actions | -11 -10 -10 -10 -9 -8 --------- Run | Yrd Mat Min Exi Min Mat Total 2419 | 59 871 494 600 132 263 Wait 23 | . 21 . . . 2 Move 2147 | 45 753 486 574 129 160 Hop . | . . . . . . Pick Up 40 | 6 19 5 6 1 3 Fast Attach 3 | 2 . . 1 . . Attach 27 | 5 3 . 6 . 13 Detach 5 | 1 . . 4 . . Swap 13 | . 8 . . 1 4 Drop 12 | . . 3 8 1 . Fire 145 | . 67 . . . 78 Melee 3 | . . . . . 3 Ram . | . . . . . . Kick . | . . . . . . Crush . | . . . . . . Escape Stasis . | . . . . . . Rewire 1 | . . . 1 . . Trap . | . . . . . . Miscellaneous . | . . . . . . Route ------- -11/Scrapyard -10/Materials (discovered 4 exits: [*Mat x3] / [*Min]) -10/Mines (discovered 2 exits: [*Mat] / *Exi) -10/Exiles (discovered 2 exits: *Min x2) -9/Mines -8/Materials History --------- Turn | Location | Event 11 | -11/Scrapyard | Discovered new exit (range 15) 77 | -11/Scrapyard | Entered Materials 93 | -10/Materials | Discovered new exit (range 15) 316 | -10/Materials | Build established: Mutant 396 | -10/Materials | Discovered new exit (range 16) 1132 | -10/Materials | Discovered new exit (range 10) 1456 | -10/Materials | Discovered new exit (range 5) 1990 | -10/Materials | Entered Mines 2055 | -10/Mines | A weapon hastily lodged in a ceiling crevice suddenly fell to the ground 2167 | -10/Mines | Discovered new exit (range 6) 2667 | -10/Mines | Received a Mining Laser from a helpful Derelict 2810 | -10/Mines | YI-UF0 nonchalantly dropped a Grenade Launcher on the ground 3151 | -10/Mines | Deemed a non-threat by the Exiles lab entrance 3154 | -10/Mines | Discovered new exit (range 5) 3163 | -10/Mines | Entered Exiles 3164 | -10/Exiles | Identified exit to Mines 3223 | -10/Exiles | Met 8R-AWN 3271 | -10/Exiles | Met EX-HEX 3409 | -10/Exiles | Met EX-DEC 3444 | -10/Exiles | Visited The Gauntlet 3750 | -10/Exiles | Learned location of Zion (-7) 4043 | -10/Exiles | Met EX-BIN 4086 | -10/Exiles | Aligned with FarCom system 4088 | -10/Exiles | Given EX-Vault access code 4204 | -10/Exiles | Opened EX-Vault 4216 | -10/Exiles | Found Prototype Device 4218 | -10/Exiles | Identified Skeleton Box 4230 | -10/Exiles | Found Prototype Energy Gun 4232 | -10/Exiles | Identified AWS/Thermal 4241 | -10/Exiles | Found Prototype Slashing Weapon 4241 | -10/Exiles | Identified Longsword +1 4357 | -10/Exiles | Warned to stay clear of 0b10 Research branches 4562 | -10/Exiles | Left Exiles lab with Skeleton Box 4562 | -10/Exiles | Entered Mines 4834 | -9/Mines | Learned Materials non-interactive machine intel 4855 | -9/Mines | Discovered new exit (range 7) 4875 | -9/Mines | Entered Materials 4875 | -8/Materials | Evolved 4 slots: Propulsion x1, Utility x3 4876 | -8/Materials | Loaded intel: 44 non-interactive machine locations 5089 | -8/Materials | Lost 5 parts (2n1u2w) 5526 | -8/Materials | Core integrity fell below 50% 5533 | -8/Materials | Lost 7 parts (1p1n1u4w) 5549 | -8/Materials | Core integrity fell below 20% 5566 | -8/Materials | Destroyed by G-47 Trooper with Particle Gun Last Messages --------------- 05541_ K-01 Serf collects debris. 05543_ L-31 Rogue destroyed. 05543_ U-05 Engineer lays Concrete. 05544_ K-01 Serf collects debris. 05544_ R-06 Scavenger collects Welding Torch. 05545_ U-05 Engineer lays Concrete. 05548_ K-01 Serf collects debris. 05548_ U-05 Engineer lays Concrete. 05548_ R-06 Scavenger collects Terrain Scan Processor. 05549_ U-05 Engineer builds a Wall. 05551_ K-01 Serf collects debris. 05552_ Acquired 56 matter. 05552_ R-06 Scavenger collects Wheel. 05554_ U-05 Engineer lays Concrete. 05554_ K-01 Serf collects debris. 05555_ U-05 Engineer lays Concrete. 05556_ U-05 Engineer builds a Wall. 05556_ R-06 Scavenger collects Imp. Aluminum Leg. 05557_ U-05 Engineer lays Concrete. 05558_ K-01 Serf collects debris. Map ----- +----------------------------------------------------+ | ???????????????????????????? * ?????????????????? | | ???????????????????????????? ?????????????????? | | ????????????????????????????# ?????????????????? | | ????????????????????????????# #????????????????? | | ???????????"""??????????????# #????????????????? | | ??????????"""""?????????"""?+ #????????????????? | | ??????????"""""?????????"""?# #????????????????? | | ??????????"""""?????????"""?# a #????????????????? | | ???????????"""??????????????# #????????????????? | | ????????????????????###??#### #????????????????? | | ??????????????????? ?? # #????????????????? | | ???????????????????? """ # ###########??????? | | ??????????????????]]] """ # #??????? | | ???????????????Y??]]] """ # "" """ #??????? | | ???????????????????] % # " " ###????? | | ??????????????????## ##+##### # # #????? | | ??????????????????? # # # #????? | | ??????????????######## # ###????? | | ?????????sass?? g! # # #????? | | ????????????????####### g %%= + ###????? | | ???????????????????# # ## ##+##+####???? | | ???????????????????# ## k # # # # #???? | | ??????????????####### # !! ## # # #???? | | """???????????# = * # #???? | | """???????????# % + #???? | | """???????????# @ % u # """ + | | ??????????????# ###+######+###### #### """ # | | ??????????????# # [# ## """ ##### | | ??????????????# #""" [ #= / # ## """ #???? | | ??????????????# #""" # # ## """ #???? | | ??????????????#####""" # """ # ## #???? | | ""????????????????# = # """"" # ## #???? | | ""????????????????# # """"" # ## #???? | | ""????????????????######## """"" # ####?###???? | | ?????????????????????????# """ #####??????????? | | ""???????????????????????# #??????????????? | | ""???????????????????????##########??????????????? | | ""???????????????????????????????????????????????? | | ?????????????????????????????????????????????????? | | ?????????????????????????????????????????????????? | | ?????????????????????????????????????????????????? | | ?????????????????????????????????????????????????? | | | | | | | | | | | | | | | | | +----------------------------------------------------+ Best States ------------- Heat Dissipation 31 Energy Generation 10 Energy Capacity 250 Matter Stores 300 Matter Capacity 300 Sight Range 16 Robot Scan Range 14 Terrain Scan Density 10 Armor Coverage 300 Core Shielding 20 Evasion (%) 50 Recoil Reduction 3 Item Schematics ----------------- None Robot Schematics ------------------ None Fabricated ------------ Nothing Alien Tech Used ----------------- None Achievements -------------- None Challenges ------------ None Game ------ Seed CompanionInsulatedNullifier Manual? 0 Play Time 00:43:09 Cumulative 19.6 hours Start 2024.10.20 @ 08:43:20 End 2024.10.20 @ 09:26:30 Sessions 1 Manual Loads 0 Difficulty Rogue Special Mode None Game No. 14 Rogue 7 Adventurer 0 Explorer 7 Win Type - Total 1 Types 1/0/0/0/0/0/0/0/0 Lore% 11 Gallery% 17 Achievement% 22 Wizard Run 0 Options --------- Layout 0 ASCII 0 Keyboard 0 Movement Mouse Keybinds 0 Fullscreen 1 Font 24/Terminus Map View 76x50 Zoom Use 0% Tactical HUD 1 Map Filters NONE Filters NONE Steam 1 RUN: 07ee1ee3-ed1a-4a59-bb6f-b3564ca8a1dd